bitfinex/quotes_BTCUSD_20241003
["timestamp","ask_amount","ask_price","bid_price","bid_amount"]
[1727957583118,0.61720119,60705.0,60689.0,0.001636]
[1727957583351,0.61720119,60705.0,60689.0,0.166409]
[1727957583634,0.67137432,60705.0,60704.0,0.006636]
[1727957583921,0.68037432,60705.0,60704.0,0.002636]
[1727957584169,0.42818761,60705.0,60704.0,0.002636]
[1727957584402,0.0002699,60707.0,60704.0,0.166367]
[1727957584639,0.24767802,60720.0,60704.0,0.167367]
[1727957584640,0.005,60705.0,60704.0,0.167367]
[1727957584878,0.004,60705.0,60704.0,0.166367]
[1727957585361,0.006,60705.0,60704.0,0.167369]
[1727957585615,0.006,60705.0,60704.0,0.17066326]
[1727957585881,0.006,60705.0,60704.0,0.167369]
[1727957586115,0.002,60705.0,60704.0,0.167369]
[1727957586372,0.008,60705.0,60704.0,0.167369]
[1727957586841,0.0260913,60710.0,60708.0,0.164721]
[1727957587107,0.0258214,60710.0,60709.0,0.16472]
[1727957587389,0.0258214,60710.0,60704.0,0.031636]
[1727957587390,0.164731,60705.0,60704.0,0.031636]
[1727957587632,0.44685881,60705.0,60704.0,0.031636]
[1727957587913,0.61031542,60705.0,60704.0,0.022636]
[1727957588436,0.77323223,60705.0,60704.0,0.022636]
[1727957588713,0.87350213,60705.0,60704.0,0.001636]
[1727957588939,0.71031542,60705.0,60704.0,0.001636]
[1727957590159,0.71831542,60705.0,60704.0,0.002636]
[1727957590887,0.72031542,60705.0,60704.0,0.002636]
[1727957591124,0.88350213,60705.0,60704.0,0.002636]
[1727957591861,0.72031542,60705.0,60704.0,0.002636]
[1727957592109,0.43818761,60705.0,60704.0,0.002636]
[1727957592333,0.72031542,60705.0,60704.0,0.002636]
[1727957595115,0.74614456,60705.0,60704.0,0.002636]
[1727957596036,0.72031542,60705.0,60704.0,0.002636]
[1727957596279,0.95940213,60705.0,60704.0,0.002636]
[1727957597252,0.54715771,60694.0,60693.0,0.24767802]
[1727957597498,0.71034442,60694.0,60693.0,0.24767802]
[1727957597791,0.71034442,60694.0,60693.0,0.25134798]
[1727957597907,0.71034442,60694.0,60693.0,0.00366996]
[1727957598160,0.1650409,60690.0,60686.0,0.24767802]
[1727957598399,0.42822761,60690.0,60686.0,0.24767802]
[1727957598881,0.32822761,60690.0,60686.0,0.24767802]
[1727957600061,0.32822761,60690.0,60679.0,0.41247702]
[1727957600808,0.32822761,60690.0,60679.0,0.57727702]
[1727957601025,0.32922761,60690.0,60681.0,0.164793]
[1727957601172,0.48922265,60690.0,60689.0,0.004636]
[1727957602601,0.58922265,60690.0,60689.0,0.004636]
[1727957604953,0.95265046,60690.0,60689.0,0.004636]
[1727957605176,0.67052265,60690.0,60689.0,0.004636]
[1727957605459,0.67252265,60690.0,60689.0,0.004636]
[1727957606177,0.42822761,60690.0,60689.0,0.004636]
[1727957606649,0.44022761,60690.0,60689.0,0.005636]
[1727957607128,0.44022761,60690.0,60689.0,0.001636]
[1727957607129,0.42822761,60690.0,60689.0,0.001636]
[1727957607407,0.42822761,60690.0,60689.0,0.003636]
[1727957607408,0.44122761,60690.0,60689.0,0.003636]
[1727957607605,0.44122761,60690.0,60689.0,0.002636]
[1727957607606,0.4660244,60690.0,60689.0,0.002636]
[1727957607830,0.4570244,60690.0,60689.0,0.001636]
[1727957608058,0.4570244,60690.0,60689.0,0.002636]
[1727957608279,0.4680244,60690.0,60689.0,0.002636]
[1727957609549,0.4610244,60690.0,60689.0,0.001636]
[1727957609755,0.4570244,60690.0,60689.0,0.001636]
[1727957609961,0.4610244,60690.0,60689.0,0.001636]
[1727957610340,0.4570244,60690.0,60689.0,0.001636]
[1727957610541,0.4670244,60690.0,60689.0,0.002636]
[1727957611832,0.43822761,60690.0,60689.0,0.002636]
[1727957612699,0.43522761,60690.0,60689.0,0.002636]
[1727957612900,0.42822761,60690.0,60689.0,0.001636]
[1727957613100,0.43622761,60690.0,60689.0,0.002636]
[1727957613232,0.59941432,60690.0,60689.0,0.002636]
[1727957613433,0.59741432,60690.0,60689.0,0.001636]
[1727957613645,0.1650409,60690.0,60689.0,0.003636]
[1727957613846,0.1670409,60690.0,60689.0,0.003636]
[1727957614078,0.1670409,60690.0,60689.0,0.0073961]
[1727957614292,0.0022699,60690.0,60689.0,0.0073961]
[1727957614492,0.1650409,60690.0,60689.0,0.0053961]
[1727957614685,0.31623538,60690.0,60689.0,0.0053961]
[1727957614956,0.15146438,60690.0,60689.0,0.0053961]
[1727957615161,0.19087219,60690.0,60689.0,0.0053961]
[1727957615572,0.19287219,60690.0,60689.0,0.0053961]
[1727957615771,0.19287219,60690.0,60689.0,0.001636]
[1727957615989,0.19287219,60690.0,60689.0,0.008383]
[1727957616716,0.19287219,60690.0,60689.0,0.004636]
[1727957616935,0.23309262,60690.0,60689.0,0.004636]
[1727957617165,0.74395735,60690.0,60689.0,0.008383]
[1727957617380,0.49627933,60690.0,60689.0,0.008383]
[1727957617590,0.49627933,60690.0,60689.0,0.004636]
[1727957619903,0.47044804,60690.0,60689.0,0.004636]
[1727957620807,0.55044804,60690.0,60689.0,0.004636]
[1727957621029,0.60209439,60690.0,60689.0,0.004636]
[1727957621922,0.60009439,60690.0,60689.0,0.004636]
[1727957622383,0.60409439,60690.0,60689.0,0.004636]
[1727957622627,0.60409439,60690.0,60689.0,0.001636]
[1727957622854,0.60009439,60690.0,60689.0,0.001636]
[1727957623127,0.63093005,60690.0,60689.0,0.002636]
[1727957623348,0.63393005,60690.0,60689.0,0.002636]
[1727957623807,0.62893005,60690.0,60689.0,0.001636]
[1727957624040,0.91105786,60690.0,60689.0,0.001636]
[1727957624265,0.91005786,60690.0,60689.0,0.001636]
[1727957624499,0.62793005,60690.0,60689.0,0.001636]
[1727957624765,0.60209439,60690.0,60689.0,0.001636]
[1727957625247,0.61109439,60690.0,60689.0,0.002636]
[1727957625439,0.61609439,60690.0,60689.0,0.003636]
[1727957626008,0.61509439,60690.0,60689.0,0.003636]
[1727957626214,1.14490022,60690.0,60668.0,0.001636]
[1727957626434,0.44721471,60673.0,60668.0,0.001636]
[1727957626649,0.54721471,60673.0,60668.0,0.001636]
[1727957627076,0.1650979,60669.0,60668.0,0.001636]
[1727957629268,0.1650979,60669.0,60668.0,0.002636]
[1727957629735,0.1650979,60669.0,60668.0,0.001636]
[1727957630145,0.1650979,60669.0,60668.0,0.004636]
[1727957630371,0.1680979,60669.0,60668.0,0.004636]
[1727957631238,0.48520098,60669.0,60668.0,0.004636]
[1727957631466,0.48220098,60669.0,60668.0,0.004636]
[1727957631901,0.48320098,60669.0,60668.0,0.004636]
[1727957633031,0.58320098,60669.0,60668.0,0.004636]
[1727957633480,0.001,60669.0,60668.0,0.004636]
[1727957633704,0.001,60669.0,60668.0,0.34698847]
[1727957634551,0.0002699,60673.0,60668.0,0.34698847]
[1727957634552,0.0002699,60673.0,60668.0,0.18215747]
[1727957634752,0.02583742,60669.0,60668.0,0.34398847]
[1727957634952,0.001,60669.0,60668.0,0.34398847]
[1727957635369,0.0002699,60673.0,60672.0,0.16482]
[1727957635710,0.0002699,60673.0,60672.0,0.16864098]
[1727957635711,0.0032699,60673.0,60672.0,0.16864098]
[1727957636182,0.329602,60680.0,60673.0,0.164817]
[1727957636183,0.0002699,60674.0,60673.0,0.164817]
[1727957636620,0.0002699,60674.0,60673.0,0.16863786]
[1727957637480,0.04973889,60674.0,60673.0,0.16863786]
[1727957637961,0.04946899,60674.0,60673.0,0.16863786]
[1727957638183,0.02583645,60674.0,60673.0,0.00382086]
[1727957638628,0.001,60674.0,60673.0,0.01382086]
[1727957638872,0.001,60674.0,60673.0,0.00382086]
[1727957639139,0.001,60674.0,60673.0,0.01282086]
[1727957639376,0.001,60674.0,60673.0,0.00382086]
[1727957639811,0.001,60674.0,60673.0,0.01282086]
[1727957640253,0.001,60674.0,60673.0,0.17763786]
[1727957641147,0.001,60674.0,60673.0,0.01282086]
[1727957641416,0.03435859,60674.0,60673.0,0.01282086]
[1727957641620,0.19917359,60674.0,60673.0,0.01282086]
[1727957641837,0.1660849,60674.0,60673.0,0.01282086]
[1727957642056,0.0012699,60674.0,60673.0,0.01282086]
[1727957642282,0.001,60674.0,60673.0,0.17763786]
[1727957642483,0.001,60674.0,60673.0,0.01282086]
[1727957643168,0.02683626,60674.0,60673.0,0.01282086]
[1727957645075,0.02683626,60674.0,60673.0,0.17763786]
[1727957645738,0.02683626,60674.0,60673.0,0.35293403]
[1727957645960,0.02683626,60674.0,60673.0,0.34963786]
[1727957646238,0.001,60674.0,60673.0,0.34963786]
[1727957646727,0.0002699,60679.0,60677.0,0.164805]
[1727957646948,0.0002699,60679.0,60673.0,0.17582086]
[1727957646949,0.1650709,60679.0,60678.0,0.00376713]
[1727957647175,0.21453689,60679.0,60678.0,0.00376713]
[1727957647392,0.04973589,60679.0,60673.0,0.182]
[1727957647617,0.54414189,60679.0,60678.0,0.00376484]
[1727957647850,0.54414189,60679.0,60673.0,0.182]
[1727957647851,0.1650829,60675.0,60673.0,0.182]
[1727957648298,0.164813,60675.0,60673.0,0.172]
[1727957648545,0.001,60674.0,60673.0,0.341817]
[1727957648812,0.001,60674.0,60673.0,0.355817]
[1727957649040,0.3298749,60679.0,60673.0,0.355817]
[1727957649041,0.0002699,60679.0,60673.0,0.336817]
[1727957649259,0.0002699,60679.0,60673.0,0.192]
[1727957649472,0.02583511,60674.0,60673.0,0.356817]
[1727957649955,0.02583511,60674.0,60673.0,0.361817]
[1727957650198,0.02683511,60674.0,60673.0,0.345817]
[1727957650875,0.02683511,60674.0,60673.0,0.34958245]
[1727957651574,0.02683511,60674.0,60673.0,0.35758245]
[1727957651797,0.02683511,60674.0,60673.0,0.34958245]
[1727957652019,0.02683511,60674.0,60673.0,0.36358245]
[1727957653763,0.001,60674.0,60673.0,0.36358245]
[1727957654013,0.001,60674.0,60673.0,0.19876545]
[1727957654492,0.001,60674.0,60673.0,0.36358245]
[1727957654714,0.0012699,60674.0,60673.0,0.36358245]
[1727957655989,0.0012699,60674.0,60673.0,0.19876545]
[1727957656244,0.03111816,60674.0,60673.0,0.19876545]
[1727957656498,0.19593316,60674.0,60673.0,0.19876545]
[1727957656923,0.03111816,60674.0,60673.0,0.19876545]
[1727957657368,0.001,60674.0,60673.0,0.20040145]
[1727957658708,0.001,60674.0,60673.0,0.36521845]
[1727957658937,0.001,60674.0,60673.0,0.20040145]
[1727957659222,0.001,60674.0,60673.0,0.36521845]
[1727957663152,0.001,60674.0,60673.0,0.84320421]
[1727957663356,0.07375283,60687.0,60683.0,0.16479]
[1727957663357,0.24767802,60684.0,60683.0,0.16479]
[1727957663554,0.24767802,60684.0,60683.0,0.18779]
[1727957663757,0.0010879,60689.0,60688.0,0.164777]
[1727957664320,0.000818,60689.0,60688.0,0.33973831]
[1727957664644,0.000818,60689.0,60688.0,0.36273831]
[1727957665540,0.000818,60689.0,60688.0,0.36473831]
[1727957666186,0.000818,60689.0,60688.0,0.37311059]
[1727957666617,0.000818,60689.0,60688.0,0.38711059]
[1727957666886,0.000818,60689.0,60688.0,0.54351119]
[1727957667118,0.000818,60689.0,60688.0,0.54151119]
[1727957667330,0.000818,60689.0,60688.0,0.7046979]
[1727957667550,0.001818,60689.0,60688.0,0.7176979]
[1727957667762,0.0010879,60704.0,60688.0,0.3817209]
[1727957668002,0.0010879,60704.0,60703.0,0.344436]
[1727957668003,0.000818,60704.0,60703.0,0.344436]
[1727957668508,0.000818,60704.0,60703.0,0.34808402]
[1727957669504,0.000818,60704.0,60703.0,0.37108402]
[1727957669714,0.000818,60704.0,60703.0,0.48769965]
[1727957670154,0.001818,60704.0,60703.0,0.48769965]
[1727957670371,0.001818,60704.0,60703.0,0.65088636]
[1727957670591,0.000818,60704.0,60703.0,0.65088636]
[1727957671461,0.000818,60704.0,60703.0,0.64488636]
[1727957671676,0.000818,60704.0,60703.0,0.65888636]
[1727957672173,0.000818,60704.0,60703.0,0.64488636]
[1727957672845,0.000818,60704.0,60703.0,0.65788636]
[1727957673058,0.000818,60704.0,60703.0,0.64488636]
[1727957673280,0.000818,60704.0,60703.0,0.63788636]
[1727957673533,0.000818,60704.0,60703.0,0.53427073]
[1727957673751,0.000818,60704.0,60703.0,0.54127073]
[1727957674204,0.000818,60704.0,60703.0,0.53427073]
[1727957674418,0.000818,60704.0,60703.0,0.37408402]
[1727957675564,0.000818,60704.0,60703.0,0.02964802]
[1727957675565,0.165551,60704.0,60703.0,0.02964802]
[1727957675809,0.1821869,60704.0,60703.0,0.02964802]
[1727957676239,0.000818,60704.0,60703.0,0.02964802]
[1727957676666,0.000818,60704.0,60703.0,0.19438402]
[1727957677096,0.000818,60704.0,60703.0,0.02964802]
[1727957677942,0.165551,60704.0,60703.0,0.02964802]
[1727957678377,0.19137464,60704.0,60703.0,0.02964802]
[1727957678589,0.19164454,60704.0,60703.0,0.02964802]
[1727957678802,0.19164454,60704.0,60703.0,0.01764802]
[1727957679229,0.19164454,60704.0,60703.0,0.00364802]
[1727957679443,0.19164454,60704.0,60703.0,0.01564802]
[1727957679444,0.02691154,60704.0,60703.0,0.01564802]
[1727957680322,0.19164454,60704.0,60703.0,0.01564802]
[1727957680544,0.19164454,60704.0,60703.0,0.02164802]
[1727957681050,0.19164454,60704.0,60703.0,0.01564802]
[1727957681282,0.19164454,60704.0,60703.0,0.02164802]
[1727957682640,0.000818,60704.0,60703.0,0.02164802]
[1727957682867,0.000818,60704.0,60703.0,0.18638402]
[1727957683110,0.0010879,60704.0,60703.0,0.18638402]
[1727957683338,0.000818,60704.0,60703.0,0.18638402]
[1727957684282,0.0010879,60704.0,60703.0,0.18638402]
[1727957684811,0.0010879,60704.0,60703.0,0.02164802]
[1727957685071,0.1658209,60704.0,60703.0,0.02164802]
[1727957685813,0.19164468,60704.0,60703.0,0.02164802]
[1727957686767,0.1658209,60704.0,60703.0,0.02164802]
[1727957690106,0.19164498,60704.0,60703.0,0.02164802]
[1727957690512,0.19164498,60704.0,60703.0,0.018]
[1727957690712,0.22522939,60704.0,60703.0,0.018]
[1727957690930,0.22522939,60704.0,60703.0,0.02159395]
[1727957691134,0.22522939,60704.0,60703.0,0.018]
[1727957691135,0.1658209,60704.0,60703.0,0.018]
[1727957692848,0.1658209,60704.0,60703.0,0.02159395]
[1727957693272,0.1658209,60704.0,60703.0,0.018]
[1727957694396,0.19164547,60704.0,60703.0,0.018]
[1727957694832,0.02691247,60704.0,60703.0,0.018]
[1727957695088,0.02691247,60704.0,60703.0,0.02159395]
[1727957695514,0.0010879,60704.0,60703.0,0.02159395]
[1727957696836,0.1658209,60704.0,60703.0,0.02159395]
[1727957697080,0.1658209,60704.0,60703.0,0.018]
[1727957697764,0.0010879,60704.0,60703.0,0.02161247]
[1727957699533,0.1658209,60704.0,60703.0,0.02161247]
[1727957700245,0.0010879,60704.0,60703.0,0.02161247]
[1727957700463,0.1658209,60704.0,60703.0,0.02161247]
[1727957700930,0.000818,60704.0,60703.0,0.18634847]
[1727957701170,0.000818,60704.0,60703.0,0.26144847]
[1727957701400,0.0010879,60704.0,60703.0,0.26144847]
[1727957701904,0.000818,60704.0,60703.0,0.37524847]
[1727957702141,0.000818,60704.0,60703.0,0.53843518]
[1727957702371,0.000818,60704.0,60703.0,0.70162189]
[1727957703038,0.000818,60704.0,60703.0,0.70988686]
[1727957703272,0.000818,60704.0,60703.0,0.70388686]
[1727957703520,0.000818,60704.0,60703.0,0.70488686]
[1727957704059,0.000818,60704.0,60703.0,0.70588686]
[1727957704288,0.000818,60704.0,60703.0,0.71988686]
[1727957705219,0.000818,60704.0,60703.0,0.37051344]
[1727957705472,0.000818,60704.0,60703.0,0.36224847]
[1727957705698,0.000818,60704.0,60703.0,0.34824847]
[1727957705922,0.000818,60704.0,60703.0,0.03161247]
[1727957706157,0.0010879,60704.0,60703.0,0.03161247]
[1727957706389,0.000818,60704.0,60703.0,0.19634847]
[1727957706850,0.000818,60704.0,60703.0,0.18234847]
[1727957707312,0.000818,60704.0,60703.0,0.16834847]
[1727957707535,0.000818,60704.0,60703.0,0.18234847]
[1727957707758,0.000818,60704.0,60703.0,0.19634847]
[1727957708526,0.0010879,60704.0,60703.0,0.01761247]
[1727957708752,0.0010879,60704.0,60703.0,0.09941247]
[1727957708977,0.1658209,60704.0,60703.0,0.08541247]
[1727957709419,0.000818,60704.0,60703.0,0.26014847]
[1727957709641,0.0010879,60704.0,60703.0,0.09541247]
[1727957709866,0.0010879,60704.0,60703.0,0.25014847]
[1727957710088,0.0010879,60704.0,60703.0,0.27114847]
[1727957710563,0.0010879,60704.0,60703.0,0.25714847]
[1727957710787,0.0010879,60704.0,60703.0,0.26914847]
[1727957711015,0.1658209,60704.0,60703.0,0.10441247]
[1727957711461,0.1658209,60704.0,60703.0,0.1008]
[1727957711462,0.42900761,60704.0,60703.0,0.1008]
[1727957711667,0.48000097,60704.0,60703.0,0.1008]
[1727957711958,0.6146333,60704.0,60703.0,0.1008]
[1727957712187,0.77782001,60704.0,60703.0,0.1008]
[1727957712435,0.77582001,60704.0,60703.0,0.0938]
[1727957712662,0.77582001,60704.0,60703.0,0.0948]
[1727957712663,0.90051689,60704.0,60703.0,0.0948]
[1727957713121,0.68433682,60704.0,60703.0,0.0938]
[1727957713341,0.56163994,60704.0,60703.0,0.0938]
[1727957713563,0.57890812,60704.0,60703.0,0.0948]
[1727957713781,0.52982145,60704.0,60703.0,0.0948]
[1727957714011,0.42900761,60704.0,60703.0,0.0938]
[1727957714262,0.42900761,60704.0,60703.0,0.0818]
[1727957714709,0.57931667,60704.0,60703.0,0.0818]
[1727957714940,0.58031667,60704.0,60703.0,0.0818]
[1727957715162,0.63204775,60704.0,60703.0,0.0818]
[1727957715421,0.63204775,60704.0,60703.0,0.0828]
[1727957715422,0.78266834,60704.0,60703.0,0.0828]
[1727957715659,0.78266834,60704.0,60703.0,0.0818]
[1727957715660,0.70704775,60704.0,60703.0,0.0818]
[1727957715880,0.70804775,60704.0,60703.0,0.0818]
[1727957716097,0.70904775,60704.0,60703.0,0.0828]
[1727957716316,0.80721593,60704.0,60703.0,0.0828]
[1727957716755,0.80521593,60704.0,60703.0,0.0818]
[1727957716978,0.80921593,60704.0,60703.0,0.0828]
[1727957717224,0.80721593,60704.0,60703.0,0.0828]
[1727957717456,0.80621593,60704.0,60703.0,0.0828]
[1727957717676,1.06484404,60704.0,60703.0,0.0828]
[1727957717890,1.06384404,60704.0,60703.0,0.0828]
[1727957718124,1.06584404,60704.0,60703.0,0.0838]
[1727957718383,0.99223893,60704.0,60703.0,0.0838]
[1727957718592,0.99123893,60704.0,60703.0,0.0838]
[1727957719039,0.99323893,60704.0,60703.0,0.0838]
[1727957719305,0.1650299,60694.0,60693.0,0.24767802]
[1727957719536,0.71140779,60694.0,60693.0,0.24767802]
[1727957719748,0.71140779,60694.0,60693.0,0.25142164]
[1727957719965,0.2650409,60690.0,60689.0,0.001636]
[1727957720179,0.42822761,60690.0,60689.0,0.001636]
[1727957720394,0.49047231,60690.0,60689.0,0.001636]
[1727957721324,0.49047231,60690.0,60689.0,0.009636]
[1727957721556,0.2650409,60690.0,60689.0,0.009636]
[1727957721786,0.2650409,60690.0,60689.0,0.086036]
[1727957721787,0.1650409,60690.0,60689.0,0.086036]
[1727957722224,0.1650409,60690.0,60689.0,0.08979784]
[1727957722908,0.1650409,60690.0,60689.0,0.09279784]
[1727957723170,0.19087252,60690.0,60689.0,0.09279784]
[1727957723611,0.27586587,60690.0,60689.0,0.09279784]
[1727957724060,0.11109487,60690.0,60689.0,0.09279784]
[1727957724269,0.27586587,60690.0,60689.0,0.09279784]
[1727957724555,0.19087252,60690.0,60689.0,0.09279784]
[1727957725514,0.1650409,60690.0,60689.0,0.09279784]
[1727957726666,0.0002699,60694.0,60689.0,0.42234484]
[1727957726890,0.0002699,60697.0,60689.0,0.09279784]
[1727957727210,0.164758,60695.0,60690.0,0.329541]
[1727957727432,0.1650409,60690.0,60689.0,0.09279784]
[1727957727643,0.1650409,60690.0,60689.0,0.004636]
[1727957727861,0.19786366,60690.0,60689.0,0.004636]
[1727957728076,0.19786366,60690.0,60689.0,0.008636]
[1727957728296,0.19786366,60690.0,60689.0,0.001636]
[1727957728730,0.22369415,60690.0,60689.0,0.001636]
[1727957729157,0.38688086,60690.0,60689.0,0.001636]
[1727957729369,0.38688086,60690.0,60689.0,0.004636]
[1727957729795,0.36105037,60690.0,60689.0,0.004636]
[1727957730227,0.19786366,60690.0,60689.0,0.004636]
[1727957730937,0.36105037,60690.0,60689.0,0.004636]
[1727957731837,0.36105037,60690.0,60689.0,0.012636]
[1727957734464,0.38688214,60690.0,60689.0,0.012636]
[1727957735415,0.36105037,60690.0,60689.0,0.012636]
[1727957737055,0.46105037,60690.0,60689.0,0.012636]
[1727957737548,0.51344951,60690.0,60689.0,0.012636]
[1727957737809,0.51344951,60690.0,60689.0,0.004636]
[1727957737810,0.75002382,60690.0,60689.0,0.004636]
[1727957738041,0.7029696,60690.0,60689.0,0.004636]
[1727957738296,0.7519963,60690.0,60689.0,0.004636]
[1727957738544,0.72780509,60690.0,60689.0,0.001636]
[1727957738778,0.77881978,60690.0,60689.0,0.002636]
[1727957739019,0.77881978,60690.0,60689.0,0.003636]
[1727957739517,0.77681978,60690.0,60689.0,0.002636]
[1727957739795,0.7039696,60690.0,60689.0,0.003636]
[1727957740028,0.75398429,60690.0,60689.0,0.003636]
[1727957740279,0.75298429,60690.0,60689.0,0.003636]
[1727957740543,0.67114684,60690.0,60689.0,0.003636]
[1727957740779,0.48289665,60690.0,60689.0,0.003636]
[1727957741006,0.43122761,60690.0,60689.0,0.003636]
[1727957741715,0.42822761,60690.0,60689.0,0.001636]
[1727957741951,0.55778139,60690.0,60689.0,0.002636]
[1727957742210,0.56078139,60690.0,60689.0,0.002636]
[1727957742521,0.55878139,60690.0,60689.0,0.001636]
[1727957742780,0.55878139,60690.0,60689.0,0.002636]
[1727957742781,0.56078139,60690.0,60689.0,0.002636]
[1727957743023,0.4590607,60690.0,60689.0,0.002636]
[1727957743255,0.4590607,60690.0,60689.0,0.001636]
[1727957743256,0.3540607,60690.0,60689.0,0.001636]
[1727957744710,0.3560607,60690.0,60689.0,0.002636]
[1727957744937,0.3560607,60690.0,60689.0,0.001636]
[1727957744938,0.54431089,60690.0,60689.0,0.001636]
[1727957745198,0.7144568,60690.0,60689.0,0.001636]
[1727957745468,0.7164568,60690.0,60689.0,0.004636]
[1727957745699,0.79062371,60690.0,60689.0,0.001636]
[1727957745933,0.78862371,60690.0,60689.0,0.001636]
[1727957746464,0.78962371,60690.0,60689.0,0.001636]
[1727957746740,0.79162371,60690.0,60689.0,0.001636]
[1727957747974,0.78962371,60690.0,60689.0,0.001636]
[1727957748221,0.79162371,60690.0,60689.0,0.001636]
[1727957748927,0.81745821,60690.0,60689.0,0.001636]
[1727957749844,0.79162371,60690.0,60689.0,0.001636]
[1727957753289,0.05507872,60690.0,60689.0,0.098136]
[1727957753808,0.05507872,60690.0,60689.0,0.10194189]
[1727957754060,0.0032699,60690.0,60689.0,0.10194189]
[1727957754279,0.1670409,60690.0,60689.0,0.10194189]
[1727957754496,0.19087102,60690.0,60689.0,0.10194189]
[1727957754734,0.24764989,60690.0,60689.0,0.10294189]
[1727957754974,0.24964989,60690.0,60689.0,0.10294189]
[1727957755436,0.24764989,60690.0,60689.0,0.10294189]
[1727957755667,0.0022699,60690.0,60689.0,0.10294189]
[1727957755906,0.0022699,60690.0,60689.0,0.26771589]
[1727957755907,0.002,60690.0,60689.0,0.26771589]
[1727957756138,0.002,60690.0,60689.0,0.34601101]
[1727957756353,0.002,60690.0,60689.0,0.34271589]
[1727957757517,0.002,60690.0,60689.0,0.34171589]
[1727957757724,0.02582741,60696.0,60695.0,0.164758]
[1727957757923,0.02582741,60696.0,60691.0,0.329534]
[1727957758137,0.02582741,60696.0,60695.0,0.0037595]
[1727957758348,0.02582741,60696.0,60695.0,0.164758]
[1727957758563,0.02582741,60696.0,60695.0,0.1685175]
[1727957758807,0.0002699,60697.0,60695.0,0.1685175]
[1727957759025,0.01677139,60697.0,60695.0,0.1695175]
[1727957759461,0.0002699,60698.0,60697.0,0.1779]
[1727957759897,0.0002699,60698.0,60697.0,0.18165921]
[1727957761467,0.5164568,60698.0,60697.0,0.00375921]
[1727957761956,0.0002699,60692.0,60691.0,0.0802]
[1727957762406,0.1650359,60692.0,60691.0,0.00376006]
[1727957762857,0.329528,60693.0,60689.0,0.098436]
[1727957762858,0.1650409,60690.0,60689.0,0.098436]
[1727957763074,0.26627671,60690.0,60689.0,0.098436]
[1727957763514,0.29210727,60690.0,60689.0,0.098436]
[1727957764174,0.29210727,60690.0,60689.0,0.001636]
[1727957764392,0.45529398,60690.0,60689.0,0.001636]
[1727957764621,0.1650409,60690.0,60689.0,0.001636]
[1727957765352,0.1650409,60690.0,60689.0,0.010636]
[1727957766454,0.1650409,60690.0,60689.0,0.014636]
[1727957767534,0.1908714,60690.0,60689.0,0.014636]
[1727957768635,0.0002699,60690.0,60689.0,0.014636]
[1727957768855,0.1650409,60690.0,60689.0,0.014636]
[1727957769574,0.0002699,60691.0,60689.0,0.014636]
[1727957769794,0.0002699,60691.0,60690.0,0.164771]
[1727957770023,0.0736962,60698.0,60691.0,0.0753]
[1727957770024,0.0494007,60698.0,60691.0,0.0753]
[1727957770243,0.32946,60706.0,60698.0,0.0981]
[1727957770244,0.0499488,60703.0,60698.0,0.0981]
[1727957770470,0.07351644,60703.0,60699.0,0.0763]
[1727957770918,0.164741,60702.0,60700.0,0.00372581]
[1727957771628,0.0002699,60701.0,60700.0,0.00372581]
[1727957771831,0.07378634,60703.0,60701.0,0.164741]
[1727957772053,0.07378634,60703.0,60702.0,0.164739]
[1727957772054,0.000818,60703.0,60702.0,0.164739]
[1727957772278,0.000818,60703.0,60702.0,0.16846452]
[1727957773434,0.000818,60703.0,60702.0,0.17346452]
[1727957774106,0.000818,60703.0,60702.0,0.17946452]
[1727957774316,0.000818,60703.0,60702.0,0.17346452]
[1727957774749,0.000818,60703.0,60702.0,0.17946452]
[1727957775176,0.000818,60703.0,60702.0,0.18546452]
[1727957775409,0.000818,60703.0,60702.0,0.60704301]
[1727957775634,0.000818,60703.0,60702.0,0.38136452]
[1727957776824,0.000818,60703.0,60702.0,0.73280142]
[1727957777049,0.000818,60704.0,60703.0,0.356936]
[1727957777283,0.000818,60704.0,60703.0,0.52012271]
[1727957777513,0.000818,60704.0,60703.0,0.52375442]
[1727957777733,0.000818,60704.0,60703.0,0.68694113]
[1727957778383,0.000818,60704.0,60703.0,0.36556771]
[1727957778597,0.000818,60704.0,60703.0,0.35156771]
[1727957778806,0.000818,60704.0,60703.0,0.33756771]
[1727957779022,0.000818,60704.0,60703.0,0.36556771]
[1727957782474,0.000818,60704.0,60703.0,0.79943244]
[1727957782682,0.000818,60705.0,60704.0,0.188733]
[1727957782905,0.000818,60705.0,60704.0,0.52871971]
[1727957783125,0.000818,60705.0,60704.0,0.53234975]
[1727957783812,0.24767802,60721.0,60720.0,0.34039]
[1727957784249,0.0002699,60725.0,60723.0,0.16468]
[1727957784509,0.0002699,60725.0,60724.0,0.164679]
[1727957784724,0.0002699,60725.0,60724.0,0.1683062]
[1727957784943,0.0002699,60729.0,60724.0,0.0036272]
[1727957785177,0.0002699,60729.0,60720.0,0.36395019]
[1727957785178,0.0002699,60729.0,60727.0,0.164669]
[1727957785407,0.0002699,60729.0,60725.0,0.33297806]
[1727957785629,0.0002699,60729.0,60728.0,0.16802473]
[1727957785840,0.0002699,60729.0,60728.0,0.1643981]
[1727957786057,0.02608347,60729.0,60728.0,0.16802473]
[1727957786709,0.02608347,60729.0,60728.0,0.00362663]
[1727957786920,0.02608347,60729.0,60728.0,0.164668]
[1727957787134,0.0002699,60729.0,60728.0,0.16829463]
[1727957788002,0.0002699,60729.0,60728.0,0.17629463]
[1727957788478,0.0002699,60732.0,60731.0,0.16466]
[1727957788925,0.0002699,60730.0,60728.0,0.011]
[1727957789148,0.1,60736.0,60728.0,0.011]
[1727957789149,0.0002699,60729.0,60728.0,0.011]
[1727957789364,0.0002699,60729.0,60728.0,0.172668]
[1727957789587,0.37493361,60736.0,60729.0,0.164665]
[1727957789588,0.0002699,60730.0,60729.0,0.164665]
[1727957790044,0.0010879,60732.0,60731.0,0.16466]
[1727957790524,0.0010879,60732.0,60731.0,0.33816]
[1727957790525,0.000818,60732.0,60731.0,0.33816]
[1727957790968,0.000818,60732.0,60731.0,0.48256491]
[1727957791619,0.000818,60732.0,60731.0,0.48656491]
[1727957792081,0.000818,60732.0,60731.0,0.48556491]
[1727957792355,0.000818,60732.0,60731.0,0.49356491]
[1727957792538,0.000818,60732.0,60731.0,0.51356491]
[1727957792973,0.000818,60732.0,60731.0,0.51756491]
[1727957793198,0.000818,60732.0,60731.0,0.50956491]
[1727957793901,0.000818,60732.0,60731.0,0.67448172]
[1727957794111,0.000817,60739.0,60738.0,0.55122129]